Cogmind - Beta 14 @@@ ROGUE MODE // 2024.11.09 @ 02:34:43 Player: Fangrelle Result: Destroyed by Shrapnel Trap Performance ------------- Evolutions (0) 0 Regions Visited (2) 400 Robots Destroyed (21) 105 Value Destroyed (557) 557 Prototype IDs (4) 80 Alien Tech Used (0) 0 Bonus (-12) -12 TOTAL SCORE: 1130 Bonus ------- Friendly Fire -12 Cogmind --------- Core Integrity 0/250 Matter 205/300 Energy 246/250 System Corruption 0% Temperature Cool (2) Movement Treading (160) Location -10/Subcaves Parts ------- > --- POWER (1) -------- Ion Engine > --- PROPULSION (2) --- Light Treads Light Treads > --- UTILITY (2) ------ Scrap Shield > --- WEAPON (2) ------- Beam Cannon Grenade Launcher > --- INVENTORY (5) ---- High-capacity Storage Unit Scrap Shield Cobbler Unit Peak State ------------ > --- POWER ------------ Ion Engine > --- PROPULSION ------- Light Treads Light Treads > --- UTILITY ---------- High-capacity Storage Unit Subdweller Optics > --- WEAPON ----------- Beam Cannon Barrage Gun > --- INVENTORY -------- Ion Engine Ion Engine Wheel Compact Wheel Medium Storage Unit Visual Processing Unit Signal Interpreter Improved Terrain Scanner Seismic Detector Propulsion Shielding Scrap Shield Scrap Shield Scrap Shield Cobbler Unit Beam Cannon Grenade Launcher [Rating: 13] Favorites ----------- Power Ion Engine Engine Ion Engine Propulsion Light Treads Treads Light Treads Wheel Wheel Utility High-capacity Storage Unit Device Improved Terrain Scanner Storage High-capacity Storage Unit Processor Targeting Computer Protection Scrap Shield Weapon Assault Rifle Energy Gun EM Shotgun Energy Cannon Beam Cannon Ballistic Gun Assault Rifle Launcher Grenade Launcher Build | -11 -10 -10 ------- Run | Yrd Mat Sub Slots Evolved . | . . . Power . | . . . Propulsion . | . . . Utility . | . . . Weapon . | . . . Parts Attached 28 | 6 11 11 Power 2 | 1 . 1 Engine 2 | 1 . 1 Core . | . . . Reactor . | . . . Propulsion 4 | 2 2 . Treads 3 | 2 1 . Leg . | . . . Wheel 1 | . 1 . Hover . | . . . Flight . | . . . Utility 8 | 1 4 3 Device 2 | . 1 1 Storage 3 | 1 2 . Processor 2 | . 1 1 Hackware . | . . . Protection 1 | . . 1 Artifact . | . . . Weapon 14 | 2 5 7 Energy Gun 2 | . 2 . Energy Cannon 3 | . 1 2 Ballistic Gun 4 | 2 1 1 Ballistic Cannon . | . . . Launcher 5 | . 1 4 Special Weapon . | . . . Impact Weapon . | . . . Slashing Weapon . | . . . Piercing Weapon . | . . . Special Melee Weapon . | . . . Unidentified Prototypes . | . . . Parts Lost 2 | . 2 . Power . | . . . Propulsion 1 | . 1 . Utility . | . . . Weapon 1 | . 1 . Highest Loss Streak 1 | . 1 . To Critical Strikes . | . . . Average Slot Usage (%) 98 | . 98 97 Engine 14 | . 14 14 Treads 26 | . 25 28 Wheel 1 | . 2 . Device 4 | . 3 5 Storage 13 | . 14 11 Processor 8 | . 9 5 Energy Gun 4 | . 6 . Energy Cannon 4 | . 3 9 Ballistic Gun 14 | . 18 2 Launcher 4 | . . 15 Peak Build Rating 13 | 6 11 13 Average Rating 8 | 4 8 9 On Entrance 4 | . 6 8 Naked Turns . | . . . Heaviest Build 53 | 13 51 53 Greatest Support 40 | 40 40 40 Greatest Overweight (x) 4 | . 4 1 Average Overweight (x) 1 | . 1 . Largest Inventory Capacity 20 | 8 20 20 Average Capacity 17 | 7 17 17 Most Carried 20 | 5 16 20 Average Carried 13 | 2 12 16 Final Capacity 20 | 8 20 5 Final Carried 15 | 5 15 5 Class Distribution -------------------- 100% | Mutant Dominant Class ---------------- Mutant | -10/Materials Mutant | -10/Subcaves Resources | -11 -10 -10 ----------- Run | Yrd Mat Sub Matter Collected 694 | 152 447 95 Remotely . | . . . Salvage Created 823 | 30 635 158 Parts 49 | 3 39 7 Haulers Intercepted 1 | . 1 . Recyclers Shooed . | . . . Parts Field Recycled . | . . . Retrieved Matter . | . . . Parts Self-Destructed 5 | . . 5 Prevented . | . . . Kills | -11 -10 -10 ------- Run | Yrd Mat Sub Combat Hostiles Destroyed 15 | . 13 2 Guns 12 | . 12 . Cannons 2 | . . 2 AOE 1 | . 1 . Classes Destroyed 8 | 1 5 2 Worker 1 | . 1 . Tunneler 1 | 1 . . Hauler 1 | . 1 . Watcher 3 | . 3 . Swarmer 3 | . 3 . Grunt 10 | . 10 . Cobbler 1 | . . 1 Subdweller 2 | . . 2 Best Kill Streak 3 | 1 3 1 Combat Bots Only 3 | . 3 1 Max Kills in Single Turn 2 | 1 2 1 Gunslinging . | . . . Exploded 1 | . 1 . Melee . | . . . Uniques/NPCs Destroyed . | . . . Combat | -11 -10 -10 -------- Run | Yrd Mat Sub Hostile Shots Fired 95 | . 76 19 Missed 21 | . 18 3 Damage Taken 1191 | . 700 491 Core 296 | . 154 142 Absorbed by Shields . | . . . Core Remaining (%) 100 | 100 . . Volleys Fired 88 | 6 61 21 Largest 2 | 2 2 2 Hottest 90 | 40 80 90 Shots Fired 152 | 12 105 35 Gun 123 | 12 101 10 Cannon 24 | . 3 21 Launcher 5 | . 1 4 Special . | . . . Kinetic 105 | 12 83 10 Thermal 24 | . 3 21 Explosive 5 | . 1 4 Electromagnetic 18 | . 18 . Robot Hit Streak 15 | 3 15 15 Robot Miss Streak 3 | 1 3 1 Penetration Max . | . . . Secondary Targets 1 | . 1 . Max Gunslinging Chain 1 | . 1 . Shots Hit Robots 103 | 7 71 25 Core Hits 43 | 2 34 7 Critical Kills 1 | . 1 . Critical Parts Destroyed . | . . . Critical Strikes 2 | . 1 1 Destroy 2 | . 1 1 Melee Attacks . | . . . Impact . | . . . Slashing . | . . . Piercing . | . . . Sneak Attacks . | . . . Combat Hostiles . | . . . Follow-up Attacks . | . . . Damage Inflicted 1624 | 96 1061 467 Guns 1140 | 96 897 147 Cannons 280 | . 18 262 Explosions 204 | . 146 58 Melee . | . . . Ramming . | . . . Kinetic 917 | 96 674 147 Thermal 387 | . 125 262 Explosive 97 | . 39 58 Electromagnetic 223 | . 223 . Impact . | . . . Slashing . | . . . Piercing . | . . . Highest Corruption . | . . . Average Corruption . | . . . Corruption Purged . | . . . Corruption Blocked . | . . . Overload Shots . | . . . Overflow Damage 7 | . 7 . Projectiles . | . . . Explosions 7 | . 7 . Melee . | . . . Knockbacks . | . . . Impact . | . . . Kinetic . | . . . Secondary . | . . . Self-Inflicted Damage 27 | . . 27 Shots 1 | . . 1 Rammed . | . . . Targets Rammed . | . . . Kicked . | . . . Crushed . | . . . Highest Temperature 84 | . 84 25 Average Temperature 21 | . 24 11 Received Heat Transfer 432 | . 333 99 Siege Activations . | . . . Robots Corrupted . | . . . Combat Hostiles . | . . . Parts Fried . | . . . Impact Corruptions . | . . . Robots Melted . | . . . Combat Hostiles . | . . . Parts Melted . | . . . Heat Transferred 642 | . 87 555 Parts Sabotaged . | . . . Parts Stolen . | . . . Parts Stripped . | . . . Power Chain Reactions 1 | . 1 . Alert | -11 -10 -10 ------- Run | Yrd Mat Sub Peak Influence 126 | 5 126 . Initial 3 | . 3 . Average 45 | 1 47 . Maximum Alert Level . | . . . Low Security (%) 100 | 100 100 . Level 1 . | . . . Level 2 . | . . . Level 3 . | . . . Level 4 . | . . . Level 5 . | . . . High Security . | . . . Max Security . | . . . Squads Dispatched 2 | . 2 . Investigation 2 | . 2 . Extermination . | . . . Reinforcement . | . . . Assault . | . . . Garrison . | . . . Intercept . | . . . Searches Triggered . | . . . Construction Impeded . | . . . Haulers Reinforced . | . . . Active Scanning Responses . | . . . Cargo Convoy Interrupts . | . . . Stealth | -11 -10 -10 --------- Run | Yrd Mat Sub Distress Signals . | . . . Communications Jammed . | . . . Distress Signals . | . . . Times Spotted 21 | . 18 3 Peak Tracking Total 5 | . 5 1 Tactical Retreats 1 | . 1 . Traps | -11 -10 -10 ------- Run | Yrd Mat Sub Traps Triggered 1 | . . 1 Indirectly . | . . . Trap Hack Attempts . | . . . Triggered . | . . . Disarmed . | . . . Reprogrammed . | . . . Reused . | . . . Traps Extracted . | . . . Installed . | . . . Triggered . | . . . Machines | -11 -10 -10 ---------- Run | Yrd Mat Sub Machines Disabled 1 | . 1 . Max in Single Turn 1 | . 1 . Machines Repaired . | . . . Machines Dismantled . | . . . Machines Sabotaged . | . . . Overloaded Fab Kills . | . . . Hacking | -11 -10 -10 --------- Run | Yrd Mat Sub Machines Accessed 10 | . 10 . Terminals 8 | . 8 . Fabricators . | . . . Repair Stations . | . . . Recycling Units 2 | . 2 . Scanalyzers . | . . . Garrison Access . | . . . Total Hacks 30 | . 30 . Successful 21 | . 21 . Failed 9 | . 9 . Catastrophic . | . . . Database Lockouts . | . . . Manual 28 | . 28 . Terminals 26 | . 26 . Fabricators . | . . . Repair Stations . | . . . Recycling Units 4 | . 4 . Scanalyzers . | . . . Garrison Access . | . . . Terminal Hacks 6 | . 6 . Robot Analysis 3 | . 3 . Prototype ID Bank 2 | . 2 . Terminal Index 1 | . 1 . Fabricator Hacks . | . . . Repair Station Hacks . | . . . Recycling Unit Hacks 2 | . 2 . Retrieve Components 2 | . 2 . Scanalyzer . | . . . Garrison Access Hacks . | . . . Unauthorized Hacks 13 | . 13 . Terminals 11 | . 11 . Botnet 8 | . 8 . Operators 1 | . 1 . Skim 2 | . 2 . Fabricators . | . . . Repair Stations . | . . . Recycling Units 2 | . 2 . Tunnel 2 | . 2 . Scanalyzers . | . . . Garrison Access . | . . . Data Cores Recovered . | . . . Used . | . . . Hacking Detections 8 | . 8 . Full Trace Events . | . . . Feedback Events . | . . . Feedback Blocked . | . . . Robot Schematics Acquired . | . . . Robots Built . | . . . Authchips . | . . . Time . | . . . Total Robot Build Rating . | . . . Part Schematics Acquired . | . . . Parts Built . | . . . Authchips . | . . . Time . | . . . Total Part Build Rating . | . . . Parts Repaired . | . . . Time . | . . . Parts Recycled . | . . . Recycled Matter . | . . . Retrieved Matter . | . . . Retrieved Components 16 | . 16 . Parts Scanalyzed . | . . . Part Schematics Acquired . | . . . Parts Damaged . | . . . Bothacking | -11 -10 -10 ------------ Run | Yrd Mat Sub Used RIF Installer . | . . . Robots Hacked . | . . . Non-combat . | . . . Combat . | . . . Robot Hacks Applied . | . . . Relay Couplers Released . | . . . Fabnet Peak Effective % . | . . . Robots Rewired . | . . . Allies Hacked . | . . . Hacks Repelled . | . . . Allies | -11 -10 -10 -------- Run | Yrd Mat Sub Total Allies . | . . . Largest Group . | . . . Highest-Rated Group . | . . . Highest-Rated Ally . | . . . Total Orders . | . . . Ally Attacks . | . . . Total Damage . | . . . Kills . | . . . Allies Corrupted . | . . . Allies Melted 1 | . . 1 Intel | -11 -10 -10 ------- Run | Yrd Mat Sub Robot Analysis Total 2 | . 2 . Derelict Logs Recovered 1 | . . 1 Drone Launches . | . . . Drone Recoveries . | . . . Exploration | -11 -10 -10 ------------- Run | Yrd Mat Sub Turns Passed 3290 | 120 2406 764 Spaces Moved 1323 | 62 950 311 Core 8 | 8 . . Treads 1182 | 54 817 311 Legs . | . . . Wheels 133 | . 133 . Hover . | . . . Flight . | . . . Fastest Speed 50 | 50 140 160 Average Speed 206 | 145 205 219 Slowest Speed 320 | 160 320 240 Overloaded Moves . | . . . Propulsion Burnouts . | . . . Robots Hopped . | . . . Cave-ins Triggered . | . . . Exploration Rate (%) 43 | 4 99 27 Regions Visited 2 Branch Regions 1 Pre-discovered Areas 2 | . 2 . Known Exits Taken . | . . . Unknown Exits Taken 2 | 1 1 . Scrap Searched 2 | . . 2 Spaces Dug 7 | . 7 . Terrain Destroyed 47 | . 10 37 Melee . | . . . Projectile . | . . . AOE 47 | . 10 37 Terrain Rammed . | . . . Walls Destroyed . | . . . Machines Disabled . | . . . Actions | -11 -10 -10 --------- Run | Yrd Mat Sub Total 1739 | 78 1302 359 Wait 268 | . 268 . Move 1321 | 61 949 311 Hop . | . . . Pick Up 23 | 5 11 7 Fast Attach 10 | 6 2 2 Attach 5 | . 3 2 Detach . | . . . Swap 13 | . 6 7 Drop 11 | . 2 9 Fire 88 | 6 61 21 Melee . | . . . Ram . | . . . Kick . | . . . Crush . | . . . Escape Stasis . | . . . Rewire . | . . . Trap . | . . . Miscellaneous . | . . . Route ------- -11/Scrapyard -10/Materials (discovered 5 exits: [*Mat x3] / [*Min] / [*Sub]) -10/Subcaves History --------- Turn | Location | Event 7 | -11/Scrapyard | Discovered new exit (range 13) 121 | -11/Scrapyard | Entered Materials 245 | -10/Materials | Discovered new exit (range 6) 312 | -10/Materials | Build established: Mutant 742 | -10/Materials | Discovered new exit (range 4) 904 | -10/Materials | Discovered new exit (range 13) 1042 | -10/Materials | Discovered new exit (range 13) 1245 | -10/Materials | Core integrity fell below 50% 2513 | -10/Materials | Discovered new exit (range 7) 2527 | -10/Materials | Entered Subcaves 2532 | -10/Subcaves | Learned Materials trap positions 2705 | -10/Subcaves | Core integrity fell below 20% 3291 | -10/Subcaves | Destroyed by Shrapnel Trap Last Messages --------------- 03067_ Destroyed Scrap Shield. 03067_ AM-PKY(u) tweaks Twisted Machinery. 03073_ P6-DKF(R) destroyed. 03081_ Acquired 25 matter. 03093_ Subatomizers dissect the Wheel. 03132_ Dropped Ion Engine. 03136_ 79-890(u) tweaks Twisted Machinery. 03138_ AM-PKY(u) tweaks Twisted Machinery. 03151_ Discarded Visual Processing Unit. 03152_ Dropped Hcp. Storage Unit. 03153_ LY-EYM(R) destroyed. 03158_ Acquired Scrap Shield. 03159_ Subatomizers dissect the Ion Engine. 03163_ Acquired Hcp. Storage Unit. 03169_ Subatomizers dissect the Ion Engine, destroying it. 03191_ Subatomizers dissect the Assault Rifle. 03220_ 79-890(u) deconstructs Twisted Machinery. 03280_ The unstable cave ceiling collapses. 03291_ Triggered Shrapnel Trap. 03291_ An expanding cloud of shrapnel blasts out in all directions. Map ----- +----------------------------------------------------+ | ???????????????????? " " ##"##?????## #?? | | ????????????????????""" """" "##?????## ### | | ???????????????????????#" " ######## | | ????????????????????????# " # ## !]= | | ????????????????????????# "### =! ![ | | ????????????????????????# " ##"" !]!* % | | ???????????????????????### # ! # | | ??????????????????????## ## ## ### #### | | ?????????????????????## ## "### ## ##??? | | ???????????????????### # " ######???? | | ???????????????????# "# # ##????????? | | ???????????????????# ########?????????? | | ???????????????????# ## " ###????????????????? | | ??????????????????## ### #??????????????????? | | ??????????????????# # ## #??????????????????? | | ??????????????????## " ##""##?????????????????? | | ???????????????????## # #?????????????????? | | ????????????????????# ##?????????????????? | | ????????????????????# #?????????????????? | | ????????????????????## # ####?????????????????? | | ?????????????????????## ########???????????????? | | ???????????????????#### #???????????????? | | ???????????????????# #???????????????? | | ???????????????????# # #??????????????? | | ???????????????????## ### ##??????????????? | | ????????????????????# ^@ #???????????????? | | ????????????????????# # #???????????????? | | ??????????????????# ## ## #???????????????? | | ??????????????????## ##?##?# #??????????????? | | ???????????????????## #?????? ##??????????????? | | ????????????????????# #??????? ???????????????? | | ???????????????????? #????????#??????????????? | | ??????????????????? # ????????????????????????? | | ?????????????????? ## ????????????????????????? | | ????????????????? ?? ????????????????????????? | | ????????????????" ?? ????????????????????????? | | ????????????????##?? #????????????????????????? | | ???????????????????? ?????????????????????????? | | ??????????????????? ?????????????????????????? | | ????????????????????? ?????????????????????????? | | ?????????????????????????????????????????????????? | | ?????????????????????????????????????????????????? | | ?????????????????????????????????????????????????? | | ?????????????????????????????????????????????????? | | ?????????????????????????????????????????????????? | | ?????????????????????????????????????????????????? | | ?????????????????????????????????????????????????? | | ?????????????????????????????????????????????????? | | ?????????????????????????????????????????????????? | | ?????????????????????????????????????????????????? | +----------------------------------------------------+ Best States ------------- Heat Dissipation 25 Energy Generation 10 Energy Capacity 250 Matter Stores 300 Matter Capacity 300 Sight Range 21 Terrain Scan Range 16 Terrain Scan Density 10 Armor Coverage 800 Evasion (%) 40 Targeting Accuracy 5 Recoil Reduction 2 Item Schematics ----------------- None Robot Schematics ------------------ None Fabricated ------------ Nothing Alien Tech Used ----------------- None Achievements -------------- None Challenges ------------ None Game ------ Seed HellfireDiametricBallwheel Manual? 0 Play Time 00:15:34 Cumulative 24.7 hours Start 2024.11.09 @ 02:20:06 End 2024.11.09 @ 02:34:43 Sessions 1 Manual Loads 0 Difficulty Rogue Special Mode None Game No. 49 Rogue 49 Adventurer 0 Explorer 0 Win Type - Total 0 Types 0/0/0/0/0/0/0/0/0 Lore% 21 Gallery% 24 Achievement% 28 Wizard Run 0 Options --------- Layout 0 ASCII 0 Keyboard 0 Movement Mouse Keybinds 0 Fullscreen 1 Font 24/Smallcaps Map View 91x25 Zoom Use 59% Tactical HUD 1 Map Filters NONE Filters NONE Steam 1 RUN: a7023af1-0d12-4715-8d33-4de624bb621c